[Event "Titled Tuesday Blitz January 03 Early 2023"]
[White "Odegov, Artem"]
[Black "Kaplan, Avi Harrison"]
[WhiteFideId "34183644"]
[BlackFideId "30934559"]
[WhiteElo "2261"]
[BlackElo "2146"]
[Result "0-1"]
[Round "08"]
[TimeControl "180+2"]
[Date "2023.01.03"]
[WhiteClock "0:00:18"]
[BlackClock "0:00:13"]

1. b3 {[%clk 0:02:57]}  e5 {[%clk 0:02:59]} 2. Bb2 {[%clk 0:02:57]}  d6 {[%clk 0:03:00]} 3. e3 {[%clk 0:02:57]}  c5 {[%clk 0:02:59]} 4. f4 {[%clk 0:02:53]}  Nc6 {[%clk 0:02:57]} 5. Nf3 {[%clk 0:02:53]}  e4 {[%clk 0:02:53]} 6. Ng5 {[%clk 0:02:51]}  f5 {[%clk 0:02:52]} 7. Bb5 {[%clk 0:02:46]}  Nf6 {[%clk 0:02:52]} 8. O-O {[%clk 0:02:45]}  Be7 {[%clk 0:02:46]} 9. d3 {[%clk 0:02:46]}  d5 {[%clk 0:02:36]} 10. dxe4 {[%clk 0:02:43]}  fxe4 {[%clk 0:02:37]} 11. Nc3 {[%clk 0:02:36]}  a6 {[%clk 0:02:36]} 12. Be2 {[%clk 0:02:29]}  h6 {[%clk 0:02:33]} 13. Bh5+ {[%clk 0:02:27]}  Kf8 {[%clk 0:02:12]} 14. Nf7 {[%clk 0:02:21]}  Qe8 {[%clk 0:02:12]} 15. Nxh8 {[%clk 0:02:19]}  Qxh5 {[%clk 0:02:12]} 16. Qxh5 {[%clk 0:02:19]}  Nxh5 {[%clk 0:02:13]} 17. Ng6+ {[%clk 0:02:18]}  Kf7 {[%clk 0:02:14]} 18. Nxe7 {[%clk 0:02:19]}  Kxe7 {[%clk 0:02:14]} 19. Nxd5+ {[%clk 0:02:19]}  Kf7 {[%clk 0:02:14]} 20. Rad1 {[%clk 0:02:19]}  Bg4 {[%clk 0:02:12]} 21. Rd2 {[%clk 0:02:18]}  Rd8 {[%clk 0:02:10]} 22. c4 {[%clk 0:02:18]}  Nb4 {[%clk 0:02:05]} 23. h3 {[%clk 0:02:17]}  Be6 {[%clk 0:01:59]} 24. g4 {[%clk 0:02:16]}  Nf6 {[%clk 0:01:52]} 25. Bxf6 {[%clk 0:02:14]}  gxf6 {[%clk 0:01:51]} 26. Rfd1 {[%clk 0:02:11]}  Nd3 {[%clk 0:01:49]} 27. Nc3 {[%clk 0:02:08]}  f5 {[%clk 0:01:50]} 28. gxf5 {[%clk 0:02:02]}  Bxf5 {[%clk 0:01:51]} 29. Kh2 {[%clk 0:02:02]}  Rd7 {[%clk 0:01:20]} 30. Rg1 {[%clk 0:02:01]}  Ke6 {[%clk 0:01:14]} 31. Nd5 {[%clk 0:01:54]}  Nb4 {[%clk 0:01:11]} 32. Rg8 {[%clk 0:01:33]}  Nd3 {[%clk 0:01:07]} 33. Rdg2 {[%clk 0:00:59]}  b5 {[%clk 0:00:29]} 34. Ra8 {[%clk 0:00:49]}  bxc4 {[%clk 0:00:14]} 35. bxc4 {[%clk 0:00:43]}  Kf7 {[%clk 0:00:05]} 36. Rxa6 {[%clk 0:00:35]}  Be6 {[%clk 0:00:05]} 37. Rc6 {[%clk 0:00:07]}  Ne1 {[%clk 0:00:05]} 38. Rg3 {[%clk 0:00:05]}  Nf3+ {[%clk 0:00:06]} 39. Kg2 {[%clk 0:00:05]}  Nh4+ {[%clk 0:00:05]} 40. Kf2 {[%clk 0:00:05]}  Nf3 {[%clk 0:00:05]} 41. Rxc5 {[%clk 0:00:03]}  Rb7 {[%clk 0:00:03]} 42. Rc7+ {[%clk 0:00:03]}  Rxc7 {[%clk 0:00:03]} 43. Nxc7 {[%clk 0:00:03]}  Bxc4 {[%clk 0:00:04]} 44. Rxf3 {[%clk 0:00:04]}  exf3 {[%clk 0:00:05]} 45. Kxf3 {[%clk 0:00:05]}  Ke7 {[%clk 0:00:05]} 46. a4 {[%clk 0:00:04]}  Kd7 {[%clk 0:00:06]} 47. Nb5 {[%clk 0:00:05]}  Bb3 {[%clk 0:00:05]} 48. Nc3 {[%clk 0:00:05]}  Kd6 {[%clk 0:00:05]} 49. e4 {[%clk 0:00:05]}  Kc5 {[%clk 0:00:06]} 50. Ke3 {[%clk 0:00:06]}  Kc4 {[%clk 0:00:06]} 51. Kd2 {[%clk 0:00:06]}  h5 {[%clk 0:00:06]} 52. e5 {[%clk 0:00:07]}  Kd4 {[%clk 0:00:06]} 53. a5 {[%clk 0:00:07]}  Bc4 {[%clk 0:00:06]} 54. a6 {[%clk 0:00:02]}  Bxa6 {[%clk 0:00:06]} 55. e6 {[%clk 0:00:03]}  Bc8 {[%clk 0:00:04]} 56. e7 {[%clk 0:00:03]}  Bd7 {[%clk 0:00:05]} 57. f5 {[%clk 0:00:02]}  Ke5 {[%clk 0:00:05]} 58. Nd5 {[%clk 0:00:02]}  Kxd5 {[%clk 0:00:02]} 59. Ke3 {[%clk 0:00:02]}  Ke5 {[%clk 0:00:02]} 60. Kf3 {[%clk 0:00:03]}  Kxf5 {[%clk 0:00:02]} 61. Kg3 {[%clk 0:00:04]}  Kf6 {[%clk 0:00:03]} 62. Kh4 {[%clk 0:00:05]}  Be8 {[%clk 0:00:03]} 63. Kg3 {[%clk 0:00:04]}  Kxe7 {[%clk 0:00:04]} 64. Kf4 {[%clk 0:00:05]}  Kf8 {[%clk 0:00:05]} 65. Kg5 {[%clk 0:00:06]}  Kg7 {[%clk 0:00:05]} 66. h4 {[%clk 0:00:06]}  Kh7 {[%clk 0:00:06]} 67. Kf5 {[%clk 0:00:07]}  Kh6 {[%clk 0:00:07]} 68. Kf6 {[%clk 0:00:08]}  Bg6 {[%clk 0:00:07]} 69. Ke6 {[%clk 0:00:08]}  Kg7 {[%clk 0:00:08]} 70. Ke7 {[%clk 0:00:09]}  Bf7 {[%clk 0:00:08]} 71. Kd6 {[%clk 0:00:09]}  Kg6 {[%clk 0:00:08]} 72. Ke5 {[%clk 0:00:10]}  Bg8 {[%clk 0:00:08]} 73. Kf4 {[%clk 0:00:11]}  Kf6 {[%clk 0:00:08]} 74. Ke4 {[%clk 0:00:12]}  Be6 {[%clk 0:00:08]} 75. Kf4 {[%clk 0:00:13]}  Bf5 {[%clk 0:00:09]} 76. Kf3 {[%clk 0:00:13]}  Ke5 {[%clk 0:00:10]} 77. Ke3 {[%clk 0:00:13]}  Bg4 {[%clk 0:00:10]} 78. Kf2 {[%clk 0:00:13]}  Kf5 {[%clk 0:00:11]} 79. Kg2 {[%clk 0:00:14]}  Bd1 {[%clk 0:00:11]} 80. Kg3 {[%clk 0:00:15]}  Ke4 {[%clk 0:00:11]} 81. Kh3 {[%clk 0:00:16]}  Kf4 {[%clk 0:00:12]} 82. Kh2 {[%clk 0:00:16]}  Kg4 {[%clk 0:00:13]} 83. Kg2 {[%clk 0:00:16]}  Kxh4 {[%clk 0:00:13]} 84. Kf2 {[%clk 0:00:16]}  Bg4 {[%clk 0:00:13]} 85. Kf1 {[%clk 0:00:17]}  Bc8 {[%clk 0:00:13]} 86. Kg2 {[%clk 0:00:18]}  Kg4 {[%clk 0:00:14]} 87. Kh2 {[%clk 0:00:19]}  h4 {[%clk 0:00:14]} 88. Kg2 {[%clk 0:00:19]}  h3+ {[%clk 0:00:15]} 89. Kg1 {[%clk 0:00:20]}  Kg3 {[%clk 0:00:15]} 90. Kh1 {[%clk 0:00:20]}  Bb7+ {[%clk 0:00:15]} 91. Kg1 {[%clk 0:00:21]}  h2+ {[%clk 0:00:16]} 92. Kf1 {[%clk 0:00:22]}  h1=Q+ {[%clk 0:00:15]} 93. Ke2 {[%clk 0:00:23]}  Qf3+ {[%clk 0:00:15]} 94. Kd2 {[%clk 0:00:23]}  Be4 {[%clk 0:00:14]} 95. Kc1 {[%clk 0:00:23]}  Qc3+ {[%clk 0:00:13]} 96. Kd1 {[%clk 0:00:18]}  Bf3# {[%clk 0:00:13]} 0-1


[Site "https://www.chess.com"]

[Event "Titled Tuesday Blitz January 03 Early 2023"]
[White "Pinheiro, Iung Alicio de O."]
[Black "Mazurkiewicz, Michal"]
[WhiteFideId "2104350"]
[BlackFideId "1124943"]
[WhiteElo "2306"]
[BlackElo "2145"]
[Result "0-1"]
[Round "08"]
[TimeControl "180+2"]
[Date "2023.01.03"]
[WhiteClock "0:00:01"]
[BlackClock "0:00:03"]

1. d4 {[%clk 0:03:00]}  Nf6 {[%clk 0:03:00]} 2. c4 {[%clk 0:03:00]}  e5 {[%clk 0:03:00]} 3. dxe5 {[%clk 0:02:59]}  Ng4 {[%clk 0:03:00]} 4. Bf4 {[%clk 0:02:59]}  Nc6 {[%clk 0:02:56]} 5. Nf3 {[%clk 0:02:59]}  Bb4+ {[%clk 0:02:56]} 6. Nbd2 {[%clk 0:02:58]}  Qe7 {[%clk 0:02:56]} 7. a3 {[%clk 0:02:56]}  Ngxe5 {[%clk 0:02:56]} 8. Nxe5 {[%clk 0:02:56]}  Nxe5 {[%clk 0:02:55]} 9. e3 {[%clk 0:02:57]}  Bc5 {[%clk 0:02:53]} 10. b4 {[%clk 0:02:52]}  Bd4 {[%clk 0:02:53]} 11. Rb1 {[%clk 0:02:35]}  Ng6 {[%clk 0:02:53]} 12. Bg3 {[%clk 0:02:32]}  d6 {[%clk 0:02:48]} 13. Be2 {[%clk 0:02:32]}  Be5 {[%clk 0:02:49]} 14. Bg4 {[%clk 0:02:01]}  Bxg4 {[%clk 0:02:43]} 15. Qxg4 {[%clk 0:02:01]}  O-O {[%clk 0:02:43]} 16. O-O {[%clk 0:02:00]}  f5 {[%clk 0:02:40]} 17. Qh5 {[%clk 0:01:57]}  f4 {[%clk 0:02:40]} 18. exf4 {[%clk 0:01:57]}  Nxf4 {[%clk 0:02:40]} 19. Bxf4 {[%clk 0:01:56]}  Rxf4 {[%clk 0:01:46]} 20. Nf3 {[%clk 0:01:46]}  g6 {[%clk 0:01:46]} 21. Qh3 {[%clk 0:01:46]}  Rxc4 {[%clk 0:01:41]} 22. Rfe1 {[%clk 0:01:38]}  Re8 {[%clk 0:01:39]} 23. Nxe5 {[%clk 0:00:51]}  dxe5 {[%clk 0:01:38]} 24. Re2 {[%clk 0:00:50]}  Qe6 {[%clk 0:01:35]} 25. Qe3 {[%clk 0:00:46]}  b6 {[%clk 0:01:15]} 26. Rbe1 {[%clk 0:00:45]}  c5 {[%clk 0:01:02]} 27. b5 {[%clk 0:00:37]}  Rd4 {[%clk 0:00:57]} 28. h3 {[%clk 0:00:37]}  Rd5 {[%clk 0:00:56]} 29. a4 {[%clk 0:00:36]}  Kg7 {[%clk 0:00:52]} 30. Qc3 {[%clk 0:00:36]}  Qf6 {[%clk 0:00:51]} 31. Re3 {[%clk 0:00:34]}  Rd4 {[%clk 0:00:47]} 32. Rf3 {[%clk 0:00:34]}  Rf4 {[%clk 0:00:47]} 33. Ree3 {[%clk 0:00:27]}  Rxf3 {[%clk 0:00:39]} 34. Rxf3 {[%clk 0:00:28]}  Qd6 {[%clk 0:00:39]} 35. Rd3 {[%clk 0:00:27]}  Qe6 {[%clk 0:00:34]} 36. Qd2 {[%clk 0:00:28]}  Re7 {[%clk 0:00:25]} 37. Rd6 {[%clk 0:00:28]}  Qf5 {[%clk 0:00:25]} 38. Rd8 {[%clk 0:00:24]}  e4 {[%clk 0:00:21]} 39. Qc3+ {[%clk 0:00:23]}  Qe5 {[%clk 0:00:19]} 40. Qxe5+ {[%clk 0:00:21]}  Rxe5 {[%clk 0:00:18]} 41. Rd7+ {[%clk 0:00:22]}  Kf6 {[%clk 0:00:19]} 42. Rxa7 {[%clk 0:00:23]}  Re6 {[%clk 0:00:16]} 43. Rxh7 {[%clk 0:00:17]}  Ke5 {[%clk 0:00:16]} 44. Rd7 {[%clk 0:00:17]}  Rd6 {[%clk 0:00:15]} 45. Rxd6 {[%clk 0:00:15]}  Kxd6 {[%clk 0:00:16]} 46. Kf1 {[%clk 0:00:16]}  Kd5 {[%clk 0:00:13]} 47. Ke2 {[%clk 0:00:16]}  Kc4 {[%clk 0:00:13]} 48. h4 {[%clk 0:00:16]}  Kb3 {[%clk 0:00:02]} 49. g4 {[%clk 0:00:16]}  c4 {[%clk 0:00:03]} 50. h5 {[%clk 0:00:16]}  gxh5 {[%clk 0:00:02]} 51. gxh5 {[%clk 0:00:17]}  c3 {[%clk 0:00:03]} 52. h6 {[%clk 0:00:16]}  c2 {[%clk 0:00:03]} 53. h7 {[%clk 0:00:17]}  c1=Q {[%clk 0:00:04]} 54. h8=Q {[%clk 0:00:18]}  Qc2+ {[%clk 0:00:03]} 55. Kf1 {[%clk 0:00:18]}  Qc4+ {[%clk 0:00:03]} 56. Kg1 {[%clk 0:00:18]}  Kxa4 {[%clk 0:00:04]} 57. Qb2 {[%clk 0:00:16]}  Qb4 {[%clk 0:00:03]} 58. Qc2+ {[%clk 0:00:16]}  Kxb5 {[%clk 0:00:04]} 59. Qe2+ {[%clk 0:00:15]}  Ka4 {[%clk 0:00:04]} 60. Qa6+ {[%clk 0:00:14]}  Kb3 {[%clk 0:00:05]} 61. Qe2 {[%clk 0:00:15]}  b5 {[%clk 0:00:05]} 62. Qe3+ {[%clk 0:00:14]}  Ka4 {[%clk 0:00:04]} 63. Qa7+ {[%clk 0:00:14]}  Kb3 {[%clk 0:00:04]} 64. Qe3+ {[%clk 0:00:14]}  Ka2 {[%clk 0:00:04]} 65. Qe2+ {[%clk 0:00:15]}  Ka3 {[%clk 0:00:04]} 66. Qe3+ {[%clk 0:00:15]}  Ka4 {[%clk 0:00:04]} 67. Qc1 {[%clk 0:00:13]}  Qb3 {[%clk 0:00:04]} 68. Qa1+ {[%clk 0:00:13]}  Kb4 {[%clk 0:00:04]} 69. Qd4+ {[%clk 0:00:13]}  Ka5 {[%clk 0:00:04]} 70. Qxe4 {[%clk 0:00:13]}  b4 {[%clk 0:00:03]} 71. Qe5+ {[%clk 0:00:13]}  Kb6 {[%clk 0:00:03]} 72. Qd6+ {[%clk 0:00:13]}  Kb5 {[%clk 0:00:03]} 73. Qb8+ {[%clk 0:00:12]}  Kc4 {[%clk 0:00:03]} 74. Qg8+ {[%clk 0:00:12]}  Kc3 {[%clk 0:00:04]} 75. Qg3+ {[%clk 0:00:12]}  Kc2 {[%clk 0:00:04]} 76. Qg6+ {[%clk 0:00:12]}  Qd3 {[%clk 0:00:04]} 77. Qc6+ {[%clk 0:00:13]}  Kd2 {[%clk 0:00:04]} 78. Qh6+ {[%clk 0:00:11]}  Kc2 {[%clk 0:00:03]} 79. Qc6+ {[%clk 0:00:10]}  Kb2 {[%clk 0:00:04]} 80. Qf6+ {[%clk 0:00:09]}  Qc3 {[%clk 0:00:04]} 81. Qd6 {[%clk 0:00:07]}  b3 {[%clk 0:00:05]} 82. f4 {[%clk 0:00:07]}  Kb1 {[%clk 0:00:03]} 83. f5 {[%clk 0:00:06]}  b2 {[%clk 0:00:04]} 84. f6 {[%clk 0:00:06]}  Kc2 {[%clk 0:00:04]} 85. f7 {[%clk 0:00:04]}  b1=Q+ {[%clk 0:00:04]} 86. Kg2 {[%clk 0:00:05]}  Qb7+ {[%clk 0:00:02]} 87. Kh2 {[%clk 0:00:03]}  Qxf7 {[%clk 0:00:02]} 88. Qh6 {[%clk 0:00:01]}  Kb2 {[%clk 0:00:03]} 0-1


[Site "https://www.chess.com"]

[Event "Titled Tuesday Blitz January 03 Early 2023"]
[White "Andreev, Konstantin"]
[Black "Maevsky, Nikolay"]
[WhiteFideId "24239305"]
[BlackFideId "4198220"]
[WhiteElo "2195"]
[BlackElo "2277"]
[Result "0-1"]
[Round "08"]
[TimeControl "180+2"]
[Date "2023.01.03"]
[WhiteClock "0:00:03"]
[BlackClock "0:00:48"]

1. e4 {[%clk 0:02:17]}  g6 {[%clk 0:02:58]} 2. d4 {[%clk 0:02:17]}  Bg7 {[%clk 0:02:58]} 3. Nc3 {[%clk 0:02:18]}  d6 {[%clk 0:02:59]} 4. h4 {[%clk 0:02:17]}  Nf6 {[%clk 0:02:50]} 5. f3 {[%clk 0:02:11]}  h5 {[%clk 0:02:49]} 6. Be3 {[%clk 0:02:11]}  a6 {[%clk 0:02:49]} 7. Qd2 {[%clk 0:02:11]}  b5 {[%clk 0:02:49]} 8. O-O-O {[%clk 0:02:11]}  Nbd7 {[%clk 0:02:49]} 9. Nh3 {[%clk 0:02:11]}  Bb7 {[%clk 0:02:50]} 10. Ng5 {[%clk 0:02:12]}  Qc8 {[%clk 0:02:47]} 11. Kb1 {[%clk 0:02:11]}  e6 {[%clk 0:02:43]} 12. Be2 {[%clk 0:02:03]}  c5 {[%clk 0:02:30]} 13. dxc5 {[%clk 0:01:59]}  dxc5 {[%clk 0:02:30]} 14. Ka1 {[%clk 0:01:24]}  b4 {[%clk 0:02:26]} 15. Nb1 {[%clk 0:01:20]}  Qc6 {[%clk 0:02:20]} 16. c3 {[%clk 0:01:04]}  a5 {[%clk 0:02:19]} 17. a4 {[%clk 0:00:57]}  Qxa4+ {[%clk 0:01:56]} 18. Na3 {[%clk 0:00:56]}  bxa3 {[%clk 0:01:56]} 19. b3 {[%clk 0:00:57]}  Qc6 {[%clk 0:01:46]} 20. Bd3 {[%clk 0:00:54]}  a4 {[%clk 0:01:44]} 21. bxa4 {[%clk 0:00:53]}  Rxa4 {[%clk 0:01:39]} 22. Rb1 {[%clk 0:00:53]}  c4 {[%clk 0:01:37]} 23. Bc2 {[%clk 0:00:51]}  Ra8 {[%clk 0:01:36]} 24. e5 {[%clk 0:00:37]}  Nxe5 {[%clk 0:01:30]} 25. Rb6 {[%clk 0:00:36]}  Qc7 {[%clk 0:01:25]} 26. Rhb1 {[%clk 0:00:36]}  Bd5 {[%clk 0:01:24]} 27. Bf4 {[%clk 0:00:33]}  Nfd7 {[%clk 0:01:24]} 28. Be4 {[%clk 0:00:21]}  Bxe4 {[%clk 0:01:17]} 29. fxe4 {[%clk 0:00:19]}  O-O {[%clk 0:01:17]} 30. g4 {[%clk 0:00:18]}  Rab8 {[%clk 0:01:02]} 31. Rxb8 {[%clk 0:00:15]}  Rxb8 {[%clk 0:01:01]} 32. Rxb8+ {[%clk 0:00:13]}  Qxb8 {[%clk 0:01:00]} 33. gxh5 {[%clk 0:00:14]}  gxh5 {[%clk 0:00:59]} 34. Qg2 {[%clk 0:00:08]}  Qb5 {[%clk 0:00:53]} 35. Qe2 {[%clk 0:00:03]}  Nd3 {[%clk 0:00:50]} 36. Qd2 {[%clk 0:00:03]}  N7c5 {[%clk 0:00:48]} 0-1


[Site "https://www.chess.com"]

[Event "Titled Tuesday Blitz January 03 Early 2023"]
[White "Lehtosaari, Mauri"]
[Black "Kopczynski, Michal"]
[WhiteFideId "501999"]
[BlackFideId "1124200"]
[WhiteElo "2176"]
[BlackElo "2225"]
[Result "1-0"]
[Round "08"]
[TimeControl "180+2"]
[Date "2023.01.03"]
[WhiteClock "0:00:25"]
[BlackClock "0:00:19"]

1. d4 {[%clk 0:03:00]}  Nf6 {[%clk 0:03:00]} 2. Nf3 {[%clk 0:03:00]}  g6 {[%clk 0:03:00]} 3. Bg5 {[%clk 0:02:58]}  Bg7 {[%clk 0:03:01]} 4. Nbd2 {[%clk 0:02:58]}  d6 {[%clk 0:03:01]} 5. e3 {[%clk 0:02:58]}  O-O {[%clk 0:03:02]} 6. Bc4 {[%clk 0:02:55]}  Nc6 {[%clk 0:03:02]} 7. O-O {[%clk 0:02:54]}  h6 {[%clk 0:03:02]} 8. Bxf6 {[%clk 0:02:50]}  Bxf6 {[%clk 0:03:02]} 9. c3 {[%clk 0:02:50]}  e5 {[%clk 0:03:02]} 10. a4 {[%clk 0:02:47]}  d5 {[%clk 0:02:56]} 11. dxe5 {[%clk 0:02:47]}  Nxe5 {[%clk 0:02:54]} 12. Nxe5 {[%clk 0:02:45]}  Bxe5 {[%clk 0:02:55]} 13. Bd3 {[%clk 0:02:24]}  c6 {[%clk 0:02:39]} 14. Qf3 {[%clk 0:02:00]}  Qh4 {[%clk 0:02:35]} 15. g3 {[%clk 0:01:59]}  Qh3 {[%clk 0:02:30]} 16. Rfe1 {[%clk 0:01:48]}  Bg4 {[%clk 0:02:29]} 17. Qg2 {[%clk 0:01:47]}  Qh5 {[%clk 0:02:26]} 18. f3 {[%clk 0:01:47]}  Bh3 {[%clk 0:02:26]} 19. Qf2 {[%clk 0:01:48]}  f5 {[%clk 0:02:22]} 20. f4 {[%clk 0:01:43]}  Bg7 {[%clk 0:02:16]} 21. Nf3 {[%clk 0:01:36]}  g5 {[%clk 0:02:14]} 22. Nd4 {[%clk 0:01:29]}  Rae8 {[%clk 0:02:06]} 23. a5 {[%clk 0:01:21]}  Qg6 {[%clk 0:01:41]} 24. a6 {[%clk 0:01:13]}  b6 {[%clk 0:01:41]} 25. Be2 {[%clk 0:01:06]}  gxf4 {[%clk 0:01:26]} 26. exf4 {[%clk 0:01:05]}  h5 {[%clk 0:01:25]} 27. Nf3 {[%clk 0:00:53]}  Bf6 {[%clk 0:01:25]} 28. Bd3 {[%clk 0:00:44]}  h4 {[%clk 0:01:22]} 29. Ne5 {[%clk 0:00:43]}  Bxe5 {[%clk 0:01:16]} 30. Rxe5 {[%clk 0:00:44]}  Rxe5 {[%clk 0:01:15]} 31. fxe5 {[%clk 0:00:45]}  Qg5 {[%clk 0:01:01]} 32. Qf4 {[%clk 0:00:40]}  Qxf4 {[%clk 0:00:54]} 33. gxf4 {[%clk 0:00:41]}  Kf7 {[%clk 0:00:52]} 34. Kf2 {[%clk 0:00:40]}  Rg8 {[%clk 0:00:40]} 35. Rg1 {[%clk 0:00:39]}  Rxg1 {[%clk 0:00:39]} 36. Kxg1 {[%clk 0:00:40]}  Bg4 {[%clk 0:00:38]} 37. Kf2 {[%clk 0:00:39]}  Ke6 {[%clk 0:00:38]} 38. Ke3 {[%clk 0:00:38]}  Bh5 {[%clk 0:00:28]} 39. b4 {[%clk 0:00:35]}  b5 {[%clk 0:00:27]} 40. Kd4 {[%clk 0:00:35]}  Be8 {[%clk 0:00:24]} 41. Kc5 {[%clk 0:00:35]}  Bd7 {[%clk 0:00:24]} 42. Bf1 {[%clk 0:00:28]}  Be8 {[%clk 0:00:22]} 43. Be2 {[%clk 0:00:27]}  Bd7 {[%clk 0:00:22]} 44. Bh5 {[%clk 0:00:27]}  Ke7 {[%clk 0:00:21]} 45. Bg6 {[%clk 0:00:23]}  Ke6 {[%clk 0:00:21]} 46. Bh7 {[%clk 0:00:21]}  Ke7 {[%clk 0:00:21]} 47. Bg8 {[%clk 0:00:21]}  Be8 {[%clk 0:00:20]} 48. e6 {[%clk 0:00:17]}  Kf8 {[%clk 0:00:14]} 49. Bf7 {[%clk 0:00:16]}  Bxf7 {[%clk 0:00:12]} 50. exf7 {[%clk 0:00:17]}  Kxf7 {[%clk 0:00:12]} 51. Kxc6 {[%clk 0:00:17]}  Ke6 {[%clk 0:00:11]} 52. Kxb5 {[%clk 0:00:18]}  d4 {[%clk 0:00:12]} 53. cxd4 {[%clk 0:00:18]}  Kd5 {[%clk 0:00:13]} 54. Ka5 {[%clk 0:00:18]}  Kxd4 {[%clk 0:00:13]} 55. b5 {[%clk 0:00:19]}  Kc5 {[%clk 0:00:14]} 56. Ka4 {[%clk 0:00:16]}  Kb6 {[%clk 0:00:13]} 57. Kb4 {[%clk 0:00:17]}  Kc7 {[%clk 0:00:13]} 58. Kc5 {[%clk 0:00:17]}  Kd7 {[%clk 0:00:14]} 59. h3 {[%clk 0:00:18]}  Kc7 {[%clk 0:00:14]} 60. b6+ {[%clk 0:00:17]}  axb6+ {[%clk 0:00:14]} 61. Kb5 {[%clk 0:00:18]}  Kb8 {[%clk 0:00:14]} 62. Kxb6 {[%clk 0:00:19]}  Ka8 {[%clk 0:00:14]} 63. Kc6 {[%clk 0:00:19]}  Ka7 {[%clk 0:00:15]} 64. Kd6 {[%clk 0:00:20]}  Kxa6 {[%clk 0:00:16]} 65. Ke6 {[%clk 0:00:21]}  Kb6 {[%clk 0:00:16]} 66. Kxf5 {[%clk 0:00:22]}  Kc6 {[%clk 0:00:17]} 67. Kg6 {[%clk 0:00:23]}  Kd7 {[%clk 0:00:18]} 68. f5 {[%clk 0:00:23]}  Ke8 {[%clk 0:00:19]} 69. Kg7 {[%clk 0:00:23]}  Ke7 {[%clk 0:00:19]} 70. f6+ {[%clk 0:00:24]}  Ke6 {[%clk 0:00:19]} 71. f7 {[%clk 0:00:25]} 1-0


[Site "https://www.chess.com"]

[Event "Titled Tuesday Blitz January 03 Early 2023"]
[White "Lacasa Diaz, Jose Antonio"]
[Black "Berezin, Viktor"]
[WhiteFideId "2203375"]
[BlackFideId "14107872"]
[WhiteElo "2359"]
[BlackElo "2307"]
[Result "0-1"]
[Round "08"]
[TimeControl "180+2"]
[Date "2023.01.03"]
[WhiteClock "0:00:37"]
[BlackClock "0:00:24"]

1. e4 {[%clk 0:03:00]}  g6 {[%clk 0:02:58]} 2. d4 {[%clk 0:03:00]}  Bg7 {[%clk 0:02:56]} 3. Nc3 {[%clk 0:03:01]}  d6 {[%clk 0:02:56]} 4. Be3 {[%clk 0:03:01]}  Nf6 {[%clk 0:02:57]} 5. Nf3 {[%clk 0:02:59]}  O-O {[%clk 0:02:56]} 6. h3 {[%clk 0:02:59]}  Nc6 {[%clk 0:02:55]} 7. a4 {[%clk 0:02:58]}  e5 {[%clk 0:02:56]} 8. dxe5 {[%clk 0:02:58]}  Nxe5 {[%clk 0:02:54]} 9. Nxe5 {[%clk 0:02:53]}  dxe5 {[%clk 0:02:54]} 10. Qxd8 {[%clk 0:02:52]}  Rxd8 {[%clk 0:02:55]} 11. Bc4 {[%clk 0:02:51]}  Ne8 {[%clk 0:02:33]} 12. Rd1 {[%clk 0:02:28]}  Bd7 {[%clk 0:02:26]} 13. a5 {[%clk 0:02:22]}  a6 {[%clk 0:02:20]} 14. Nd5 {[%clk 0:02:18]}  Bf8 {[%clk 0:02:15]} 15. c3 {[%clk 0:02:11]}  Kg7 {[%clk 0:02:15]} 16. f3 {[%clk 0:02:00]}  f6 {[%clk 0:02:15]} 17. Kf2 {[%clk 0:01:54]}  Rac8 {[%clk 0:02:14]} 18. Rd2 {[%clk 0:01:52]}  Nd6 {[%clk 0:02:14]} 19. Ba2 {[%clk 0:01:52]}  Be8 {[%clk 0:01:57]} 20. Rhd1 {[%clk 0:01:45]}  Bf7 {[%clk 0:01:57]} 21. b4 {[%clk 0:01:43]}  f5 {[%clk 0:01:57]} 22. Bg5 {[%clk 0:01:41]}  Re8 {[%clk 0:01:50]} 23. Nf6 {[%clk 0:01:21]}  Re7 {[%clk 0:01:41]} 24. exf5 {[%clk 0:01:12]}  gxf5 {[%clk 0:01:38]} 25. Nd5 {[%clk 0:01:08]}  Ree8 {[%clk 0:01:35]} 26. Nf6 {[%clk 0:01:03]}  Re7 {[%clk 0:01:30]} 27. Bxf7 {[%clk 0:01:01]}  Rxf7 {[%clk 0:01:29]} 28. Nd5 {[%clk 0:01:01]}  Kg6 {[%clk 0:01:22]} 29. Be3 {[%clk 0:00:57]}  Nc4 {[%clk 0:01:19]} 30. Re2 {[%clk 0:00:54]}  Nxe3 {[%clk 0:01:13]} 31. Rxe3 {[%clk 0:00:53]}  Bg7 {[%clk 0:01:14]} 32. Red3 {[%clk 0:00:51]}  h5 {[%clk 0:01:10]} 33. c4 {[%clk 0:00:50]}  h4 {[%clk 0:01:09]} 34. Ne3 {[%clk 0:00:48]}  Re8 {[%clk 0:01:07]} 35. Rd7 {[%clk 0:00:48]}  Ree7 {[%clk 0:01:05]} 36. Rxe7 {[%clk 0:00:48]}  Rxe7 {[%clk 0:01:06]} 37. Rd8 {[%clk 0:00:48]}  c6 {[%clk 0:01:01]} 38. c5 {[%clk 0:00:45]}  e4 {[%clk 0:00:57]} 39. Nc4 {[%clk 0:00:44]}  Bc3 {[%clk 0:00:49]} 40. Rd6+ {[%clk 0:00:41]}  Kh7 {[%clk 0:00:45]} 41. Ne3 {[%clk 0:00:41]}  Bxb4 {[%clk 0:00:32]} 42. Nxf5 {[%clk 0:00:37]}  Bxc5+ {[%clk 0:00:29]} 43. Ke2 {[%clk 0:00:37]}  exf3+ {[%clk 0:00:24]} 44. Kxf3 {[%clk 0:00:37]}  Bxd6 {[%clk 0:00:24]} 45. Nxd6 {[%clk 0:00:37]}  Rd7 {[%clk 0:00:24]} 0-1


[Site "https://www.chess.com"]